[Event "GER-ch Youth ODJM 2019"]
[Site "Willingen"]
[Date "2019.06.15"]
[Round "9.1"]
[White "Weber, Samuel"]
[Black "Holtel, Jasper"]
[Result "0-1"]
[ECO "B50"]
[WhiteElo "2160"]
[BlackElo "2273"]
[Annotator "NA"]
[PlyCount "76"]
[EventDate "2019.06.07"]
[EventType "swiss"]
[EventRounds "9"]
[EventCountry "GER"]
[SourceTitle "playchess.com"]
[Source "ChessBase"]
[SourceQuality "1"]
[TimeControl "40/5400+30:1800+30"]

1. e4 {[%emt 0:00:00]} c5 {[%emt 0:06:48]} 2. Nf3 {[%emt 0:00:00]} d6 {[%emt 0:00:05]} 3. g3 {[%emt 0:00:43]} Nf6 {[%emt 0:00:17]} 4. d3 {[%emt 0:00:12]} e5 {[%emt 0:00:06]} 5. Bg2 {[%emt 0:00:13]} h6 {[%emt 0:00:07]} 6. O-O {[%emt 0:02:28]} Be7 {[%emt 0:00:59]} 7. Nc3 {[%emt 0:03:54]} O-O {[%emt 0:03:27] unterminated} 8. h3 {[%emt 0:08:39] unterminated} Be6 {[%emt 0:21:01] unterminated} 9. Nd2 {[%emt 0:05:40] unterminated} Qd7 {[%emt 0:14:04] unterminated} 10. Kh2 {[%emt 0:02:19]} d5 {[%emt 0:00:46] unterminated} 11. exd5 {[%emt 0:02:26] unterminated} Nxd5 {[%emt 0:02:06] unterminated} 12. Nxd5 {[%emt 0:05:37] unterminated} Bxd5 {[%emt 0:02:00] unterminated} 13. Nc4 $15 {[%emt 0:11:04]} Nc6 {[%emt 0:01:42]} 14. Re1 {[%emt 0:08:32]} Bxg2 {[%emt 0:05:18]} 15. Kxg2 {[%emt 0:00:14]} Qd5+ {[%emt 0:00:30]} 16. f3 {[%emt 0:09:13]} f5 {[%emt 0:11:55]} 17. Be3 {[%emt 0:06:45]} Rad8 {[%emt 0:01:26]} 18. Bf2 {[%emt 0:03:52]} b6 {[%emt 0:02:22]} 19. Qe2 {[%emt 0:04:46]} Bf6 {[%emt 0:00:13]} 20. a4 {[%emt 0:03:52]} Kh7 {[%emt 0:03:13]} 21. Rad1 {[%emt 0:00:16]} g6 {[%emt 0:01:02]} 22. c3 {[%emt 0:01:24]} Rfe8 {[%emt 0:00:34]} 23. Kh2 {[%emt 0:01:45]} Re7 {[%emt 0:03:00]} 24. Ne3 {[%emt 0:03:21]} Qd7 {[%emt 0:00:35]} 25. Qc2 {[%emt 0:00:31]} Bg7 {[%emt 0:02:23]} 26. Nc4 {[%emt 0:02:05]} Qd5 {[%emt 0:04:50]} 27. Qe2 {[%emt 0:00:39]} Rde8 {[%emt 0:00:23]} 28. Bg1 {[%emt 0:02:16]} Nd8 {[%emt 0:01:04]} 29. Ne3 {[%emt 0:06:06]} Qc6 {[%emt 0:00:25]} 30. Ra1 {[%emt 0:01:05]} Ne6 {[%emt 0:00:29]} 31. h4 {[%emt 0:01:35]} Nd4 {[%emt 0:00:50]} 32. cxd4 {[%emt 0:00:54]} exd4 {[%emt 0:00:05]} 33. Qd2 {[%emt 0:02:24]} dxe3 {[%emt 0:00:23]} 34. Rxe3 {[%emt 0:00:38]} Rxe3 {[%emt 0:00:18]} 35. Bxe3 {[%emt 0:00:02]} Qxf3 {[%emt 0:00:29]} 36. Re1 {[%emt 0:00:41]} Qd5 {[%emt 0:04:08]} 37. Bf2 {[%emt 0:01:14]} Rxe1 {[%emt 0:00:12]} 38. Bxe1 {[%emt 0:00:35]} Qb3 {[%emt 0:00:00] normal} 0-1

[Event "GER-ch Youth ODJM 2019"]
[Site "Willingen"]
[Date "2019.06.15"]
[Round "9.2"]
[White "Oberhofer, Cedric"]
[Black "Terhuven, Patrick"]
[Result "1-0"]
[ECO "B34"]
[WhiteElo "2243"]
[BlackElo "2210"]
[Annotator "ChessBase"]
[PlyCount "40"]
[EventDate "2019.06.07"]
[EventType "swiss"]
[EventRounds "9"]
[EventCountry "GER"]
[SourceTitle "playchess.com"]
[Source "ChessBase"]
[SourceQuality "1"]
[TimeControl "40/5400+30:1800+30"]

1. e4 {[%emt 0:00:00]} c5 {[%emt 0:00:00]} 2. Nf3 {[%emt 0:00:00]} g6 {[%emt 0:00:00]} 3. d4 {[%emt 0:00:03]} cxd4 {[%emt 0:00:00]} 4. Nxd4 {[%emt 0:00:05]} Nc6 {[%emt 0:00:00]} 5. Nc3 {[%emt 0:00:12]} Bg7 {[%emt 0:00:00]} 6. Be3 {[%emt 0:00:04]} Nf6 {[%emt 0:00:01]} 7. Nxc6 {[%emt 0:00:04]} bxc6 {[%emt 0:00:08]} 8. e5 {[%emt 0:00:04]} Ng8 {[%emt 0:00:08]} 9. f4 {[%emt 0:00:06]} Nh6 {[%emt 0:00:28]} 10. Qd2 {[%emt 0:01:39]} O-O {[%emt 0:00:50]} 11. O-O-O {[%emt 0:04:34]} d6 {[%emt 0:02:36]} 12. Bc4 {[%emt 0:07:38]} Nf5 {[%emt 0:16:29]} 13. Bf2 {[%emt 0:05:24]} c5 {[%emt 0:01:35]} 14. h4 {[%emt 0:08:03]} Bb7 {[%emt 0:09:26]} 15. e6 {[%emt 0:18:24]} Bxg2 {[%emt 0:04:54]} 16. exf7+ {[%emt 0:01:58]} Kh8 {[%emt 0:00:17]} 17. h5 {[%emt 0:06:44]} Bxh1 {[%emt 0:01:45]} 18. Rxh1 {[%emt 0:00:08]} gxh5 {[%emt 0:11:21]} 19. Ne4 {[%emt 0:11:37]} Nh6 {[%emt 0:29:00]} 20. Ng5 {[%emt 0:02:29]} Qc8 {[%emt 0:11:01] normal} 1-0

[Event "GER-ch Youth ODJM 2019"]
[Site "Willingen"]
[Date "2019.06.15"]
[Round "9.3"]
[White "Ortmeier, Leonhard"]
[Black "Stelmaszyk, Nico"]
[Result "1/2-1/2"]
[ECO "A09"]
[WhiteElo "2140"]
[BlackElo "2174"]
[Annotator "ChessBase"]
[PlyCount "63"]
[EventDate "2019.06.07"]
[EventType "swiss"]
[EventRounds "9"]
[EventCountry "GER"]
[SourceTitle "playchess.com"]
[Source "ChessBase"]
[SourceQuality "1"]
[TimeControl "40/5400+30:1800+30"]

1. Nf3 {[%emt 0:00:00]} d5 {[%emt 0:00:00]} 2. c4 {[%emt 0:02:38]} d4 {[%emt 0:00:00]} 3. b4 {[%emt 0:02:23]} g5 {[%emt 0:00:00]} 4. Bb2 {[%emt 0:06:08]} Bg7 {[%emt 0:00:41]} 5. d3 {[%emt 0:04:27]} g4 {[%emt 0:01:19]} 6. Nfd2 {[%emt 0:01:49]} e5 {[%emt 0:00:28]} 7. Qb3 {[%emt 0:03:11]} Ne7 {[%emt 0:03:18]} 8. Na3 {[%emt 0:02:21]} a5 {[%emt 0:01:32]} 9. Nc2 {[%emt 0:04:18]} axb4 {[%emt 0:06:53]} 10. Nxb4 {[%emt 0:02:37]} Na6 {[%emt 0:01:32]} 11. Nxa6 {[%emt 0:00:51]} Rxa6 {[%emt 0:00:05]} 12. g3 {[%emt 0:01:34]} Bd7 {[%emt 0:08:03]} 13. Bg2 {[%emt 0:06:59]} O-O {[%emt 0:04:41]} 14. Qc2 {[%emt 0:02:47]} Bc6 {[%emt 0:01:06]} 15. O-O {[%emt 0:01:24]} f5 {[%emt 0:02:01]} 16. Bxc6 {[%emt 0:16:13]} Nxc6 {[%emt 0:03:05]} 17. c5 {[%emt 0:05:00]} Qd5 {[%emt 0:03:53]} 18. Qc4 {[%emt 0:01:21]} Qxc4 {[%emt 0:00:09]} 19. Nxc4 {[%emt 0:00:08]} Rfa8 {[%emt 0:00:07]} 20. Rfb1 {[%emt 0:06:53]} Rxa2 {[%emt 0:01:57]} 21. Rxa2 {[%emt 0:01:29]} Rxa2 {[%emt 0:00:05]} 22. Ba3 {[%emt 0:00:11]} Nd8 {[%emt 0:03:25]} 23. c6 {[%emt 0:08:32]} bxc6 {[%emt 0:03:45]} 24. Rb8 {[%emt 0:00:56]} Bf6 {[%emt 0:00:05]} 25. Nxe5 {[%emt 0:01:09]} Bxe5 {[%emt 0:20:31]} 26. Rxd8+ {[%emt 0:00:13]} Kg7 {[%emt 0:00:16]} 27. Bc5 {[%emt 0:00:52]} Rxe2 {[%emt 0:01:55]} 28. Bxd4 {[%emt 0:00:25]} Bxd4 {[%emt 0:00:08]} 29. Rxd4 {[%emt 0:00:03]} Re7 {[%emt 0:00:11]} 30. f3 {[%emt 0:02:15]} h5 {[%emt 0:02:29]} 31. Kf2 {[%emt 0:00:45]} Kf6 {[%emt 0:00:15]} 32. Rd8 {[%emt 0:00:51] normal} 1/2-1/2

[Event "GER-ch Youth ODJM 2019"]
[Site "Willingen"]
[Date "2019.06.15"]
[Round "9.4"]
[White "Garbuz, Vitaliy"]
[Black "Kardoeus, David"]
[Result "1/2-1/2"]
[ECO "B21"]
[WhiteElo "2051"]
[BlackElo "2202"]
[Annotator "NA"]
[PlyCount "106"]
[EventDate "2019.06.07"]
[EventType "swiss"]
[EventRounds "9"]
[EventCountry "GER"]
[SourceTitle "playchess.com"]
[Source "ChessBase"]
[SourceQuality "1"]
[TimeControl "40/5400+30:1800+30"]

1. e4 {[%emt 0:00:00]} c5 {[%emt 0:01:27]} 2. d4 {[%emt 0:00:00]} cxd4 {[%emt 0:00:07]} 3. c3 {[%emt 0:00:00]} Nf6 {[%emt 0:00:07]} 4. e5 {[%emt 0:00:00]} Nd5 {[%emt 0:00:04]} 5. Nf3 {[%emt 0:00:00]} Nc6 {[%emt 0:00:24]} 6. Bc4 {[%emt 0:00:00]} Nb6 {[%emt 0:00:35]} 7. Bb3 {[%emt 0:00:04] unterminated} e6 {[%emt 0:03:41]} 8. cxd4 {[%emt 0:01:37]} d6 {[%emt 0:00:12] unterminated} 9. O-O {[%emt 0:09:00]} Be7 {[%emt 0:05:07]} 10. Nc3 {[%emt 0:00:24]} O-O {[%emt 0:05:03]} 11. Be3 {[%emt 0:02:02] B22: Sicilian: 2 c3} (11. Qe2 d5 12. Bc2 Bd7 13. Qd3 g6 14. Qe3 f6 15. Qh6 Rf7 16. Re1 Rc8 17. Qh3 Bf8 18. exf6 Qxf6 19. Bg5 {0-1 (37) Ozgibcev,A (2376)-Rodin,D (2412) Sochi 2018}) 11... dxe5 {[%emt 0:10:15]} 12. Nxe5 {[%emt 0:02:09]} Bf6 {[%emt 0:02:30]} 13. Nxc6 {[%emt 0:01:34]} bxc6 {[%emt 0:00:07]} 14. Ne4 {[%emt 0:01:06]} Ba6 {[%emt 0:00:43]} 15. Re1 {[%emt 0:00:40]} Nc4 $146 {[%emt 0:00:30] unterminated} ({Predecessor:} 15... Nd5 16. Nc5 Bc8 17. Qf3 g6 18. Ba4 Bd7 19. Rac1 Rc8 20. Nd3 Qb6 {1-0 (28) Kusenkova,N (1818)-Baraeva,I (2080) Sibenik 2007}) 16. Qe2 {[%emt 0:13:55]} Nxe3 {[%emt 0:01:10] unterminated} 17. Nxf6+ {[%emt 0:03:54] unterminated} Qxf6 {[%emt 0:00:15]} 18. Qxe3 {[%emt 0:00:32] unterminated} Rfd8 {[%emt 0:05:16] unterminated} 19. Rad1 {[%emt 0:00:20]} Bb5 {[%emt 0:00:37] unterminated} 20. Qc3 $11 {[%emt 0:03:50]} Rab8 {[%emt 0:29:53]} 21. Qc5 {[%emt 0:04:56]} a5 {[%emt 0:01:37]} 22. a4 {[%emt 0:12:17]} Ba6 {[%emt 0:00:35]} 23. Re3 {[%emt 0:00:41]} Qf5 {[%emt 0:10:03]} 24. Re5 {[%emt 0:27:09]} Qg4 {[%emt 0:02:19]} 25. h3 {[%emt 0:03:19]} Qf4 {[%emt 0:02:05]} 26. Re3 {[%emt 0:02:20]} Qf5 {[%emt 0:08:15]} 27. Qxf5 {[%emt 0:00:03]} exf5 {[%emt 0:00:06]} 28. d5 {[%emt 0:02:43]} c5 {[%emt 0:03:32]} 29. Rd2 {[%emt 0:06:35]} c4 {[%emt 0:00:58]} 30. Bd1 {[%emt 0:00:25]} Rd6 {[%emt 0:01:07]} 31. Re7 {[%emt 0:00:33]} Kf8 {[%emt 0:01:53]} 32. Ra7 {[%emt 0:00:52]} Rb7 {[%emt 0:02:16]} 33. Ra8+ {[%emt 0:01:00]} Ke7 {[%emt 0:00:01]} 34. Kh2 {[%emt 0:01:04]} Rb4 {[%emt 0:01:50]} 35. Ra7+ {[%emt 0:00:53]} Kf6 {[%emt 0:00:09]} 36. Rc7 {[%emt 0:00:42]} Bb7 {[%emt 0:00:47]} 37. Rc5 {[%emt 0:00:17]} Ke7 {[%emt 0:01:20]} 38. Rxa5 {[%emt 0:01:03]} Ra6 {[%emt 0:00:20]} 39. Rc5 {[%emt 0:00:54]} Kd6 {[%emt 0:00:09]} 40. Rb5 {[%emt 0:00:31]} Rxb5 {[%emt 0:00:55]} 41. axb5 {[%emt 0:30:12]} Rb6 {[%emt 0:30:56]} 42. Be2 {[%emt 0:00:49]} Kc5 {[%emt 0:00:00]} 43. d6 {[%emt 0:00:00]} Rxd6 {[%emt 0:00:00]} 44. Rxd6 {[%emt 0:00:00]} Kxd6 {[%emt 0:00:00]} 45. Bxc4 {[%emt 0:00:00]} f6 {[%emt 0:00:00]} 46. Bg8 {[%emt 0:00:00]} h6 {[%emt 0:00:00]} 47. Bf7 {[%emt 0:00:20]} Be4 {[%emt 0:00:00]} 48. Be8 {[%emt 0:00:34]} Kc5 {[%emt 0:00:00]} 49. Kg3 {[%emt 0:00:42]} g5 {[%emt 0:00:00]} 50. f3 {[%emt 0:00:37]} Bd3 {[%emt 0:00:00]} 51. f4 {[%emt 0:00:50]} Bxb5 {[%emt 0:00:00]} 52. Bxb5 {[%emt 0:00:10]} Kxb5 {[%emt 0:00:00]} 53. fxg5 {[%emt 0:00:39]} fxg5 {[%emt 0:00:00] normal} 1/2-1/2

[Event "GER-ch Youth ODJM 2019"]
[Site "Willingen"]
[Date "2019.06.15"]
[Round "9.5"]
[White "Knudsen, Simon"]
[Black "Savchenko, Daniel"]
[Result "1/2-1/2"]
[ECO "A06"]
[WhiteElo "2166"]
[BlackElo "2120"]
[Annotator "ChessBase"]
[PlyCount "41"]
[EventDate "2019.06.07"]
[EventType "swiss"]
[EventRounds "9"]
[EventCountry "GER"]
[SourceTitle "playchess.com"]
[Source "ChessBase"]
[SourceQuality "1"]
[TimeControl "40/5400+30:1800+30"]

1. Nf3 {[%emt 0:00:00]} d5 {[%emt 0:00:00]} 2. g3 {[%emt 0:00:00]} e6 {[%emt 0:00:00]} 3. Bg2 {[%emt 0:00:00]} Nf6 {[%emt 0:00:01]} 4. O-O {[%emt 0:00:00]} Be7 {[%emt 0:00:08]} 5. d3 {[%emt 0:00:04]} O-O {[%emt 0:00:11]} 6. Nbd2 {[%emt 0:00:07]} c5 {[%emt 0:00:57]} 7. e4 {[%emt 0:00:09]} Nc6 {[%emt 0:00:39]} 8. c3 {[%emt 0:00:07]} b6 {[%emt 0:00:30]} 9. Qe2 {[%emt 0:00:19]} Bb7 {[%emt 0:00:29]} 10. Re1 {[%emt 0:00:16]} Qc7 {[%emt 0:02:28]} 11. e5 {[%emt 0:06:28]} Nd7 {[%emt 0:02:04]} 12. Nf1 {[%emt 0:00:12]} Rae8 {[%emt 0:04:45]} 13. Bf4 {[%emt 0:00:48]} Qc8 {[%emt 0:01:53]} 14. h4 {[%emt 0:02:23]} h6 {[%emt 0:04:56]} 15. N1h2 {[%emt 0:00:43]} f5 {[%emt 0:00:30]} 16. Qd2 {[%emt 0:05:41]} Rf7 {[%emt 0:02:43]} 17. Rac1 {[%emt 0:00:15]} Kh7 {[%emt 0:00:29]} 18. b4 {[%emt 0:06:48]} a6 {[%emt 0:03:19]} 19. a3 {[%emt 0:00:15]} Qa8 {[%emt 0:00:28]} 20. d4 {[%emt 0:00:09]} cxd4 {[%emt 0:00:20]} 21. cxd4 {[%emt 0:00:10] normal} 1/2-1/2

[Event "GER-ch Youth ODJM 2019"]
[Site "Willingen"]
[Date "2019.06.15"]
[Round "9.6"]
[White "Parvanyan, Alfred"]
[Black "Hartmann, Jakob"]
[Result "1/2-1/2"]
[ECO "A06"]
[WhiteElo "2066"]
[BlackElo "2144"]
[Annotator "ChessBase"]
[PlyCount "78"]
[EventDate "2019.06.07"]
[EventType "swiss"]
[EventRounds "9"]
[EventCountry "GER"]
[SourceTitle "playchess.com"]
[Source "ChessBase"]
[SourceQuality "1"]
[TimeControl "40/5400+30:1800+30"]

1. g3 {[%emt 0:00:00]} d5 {[%emt 0:00:35]} 2. Nf3 {[%emt 0:00:00]} Bg4 {[%emt 0:01:01]} 3. Bg2 {[%emt 0:00:01]} Nd7 {[%emt 0:00:47]} 4. O-O {[%emt 0:00:21]} e6 {[%emt 0:02:00]} 5. d3 {[%emt 0:00:37]} Bd6 {[%emt 0:02:55]} 6. h3 {[%emt 0:00:56]} Bxf3 {[%emt 0:06:12]} 7. Bxf3 {[%emt 0:00:06]} Ngf6 {[%emt 0:00:56]} 8. e4 {[%emt 0:00:40]} O-O {[%emt 0:04:44]} 9. Bg2 {[%emt 0:07:13]} dxe4 {[%emt 0:15:45]} 10. dxe4 {[%emt 0:00:11]} Bc5 {[%emt 0:04:06]} 11. Qe2 {[%emt 0:01:33]} e5 {[%emt 0:02:15]} 12. a4 {[%emt 0:03:49]} a5 {[%emt 0:02:18]} 13. Nd2 {[%emt 0:00:49]} c6 {[%emt 0:04:12]} 14. Nc4 {[%emt 0:06:21]} Re8 {[%emt 0:02:50]} 15. Rd1 {[%emt 0:02:39]} Qc7 {[%emt 0:12:24]} 16. Bd2 {[%emt 0:17:54]} b6 {[%emt 0:06:25]} 17. Ne3 {[%emt 0:03:09]} Nf8 {[%emt 0:01:59]} 18. Nf5 {[%emt 0:00:21]} Ne6 {[%emt 0:01:13]} 19. c3 {[%emt 0:03:26]} Red8 {[%emt 0:02:24]} 20. Qf3 {[%emt 0:06:52]} Ne8 {[%emt 0:05:32]} 21. Qg4 {[%emt 0:04:47]} Rd7 {[%emt 0:02:41]} 22. Bg5 {[%emt 0:05:39]} Rxd1+ {[%emt 0:03:01]} 23. Rxd1 {[%emt 0:00:06]} Nxg5 {[%emt 0:02:39]} 24. Qxg5 {[%emt 0:00:04]} f6 {[%emt 0:02:45]} 25. Qg4 {[%emt 0:03:21]} Rd8 {[%emt 0:01:44]} 26. Bf1 {[%emt 0:05:04]} Rxd1 {[%emt 0:03:28]} 27. Qxd1 {[%emt 0:00:06]} Nd6 {[%emt 0:01:45]} 28. Nxd6 {[%emt 0:02:16]} Qxd6 {[%emt 0:00:54]} 29. Bc4+ {[%emt 0:03:30]} Kh8 {[%emt 0:01:12]} 30. Qg4 {[%emt 0:10:13]} g6 {[%emt 0:02:29]} 31. Qe6 {[%emt 0:05:43]} Qxe6 {[%emt 0:01:33]} 32. Bxe6 {[%emt 0:00:04]} Bd6 {[%emt 0:00:31]} 33. Bd7 {[%emt 0:00:23]} c5 {[%emt 0:00:22]} 34. Kf1 {[%emt 0:00:34]} Kg7 {[%emt 0:00:36]} 35. Ke2 {[%emt 0:00:07]} Kf7 {[%emt 0:00:31]} 36. Kd3 {[%emt 0:00:24]} Ke7 {[%emt 0:00:27]} 37. Bc8 {[%emt 0:01:32]} Bc7 {[%emt 0:00:37]} 38. Kc4 {[%emt 0:00:31]} Kd6 {[%emt 0:00:22]} 39. h4 {[%emt 0:04:02]} Bd8 {[%emt 0:00:35] normal} 1/2-1/2

[Event "GER-ch Youth ODJM 2019"]
[Site "Willingen"]
[Date "2019.06.15"]
[Round "9.7"]
[White "Dette, Jan"]
[Black "Hesse, Henrik"]
[Result "1-0"]
[ECO "A14"]
[WhiteElo "2109"]
[BlackElo "2166"]
[Annotator "ChessBase"]
[PlyCount "64"]
[EventDate "2019.06.07"]
[EventType "swiss"]
[EventRounds "9"]
[EventCountry "GER"]
[SourceTitle "playchess.com"]
[Source "ChessBase"]
[SourceQuality "1"]
[TimeControl "40/5400+30:1800+30"]

1. c4 {[%emt 0:00:00]} Nf6 {[%emt 0:00:00]} 2. g3 {[%emt 0:00:00]} e6 {[%emt 0:00:07]} 3. Bg2 {[%emt 0:00:00]} d5 {[%emt 0:00:39]} 4. Nf3 {[%emt 0:00:00]} Be7 {[%emt 0:00:28]} 5. O-O {[%emt 0:00:01]} O-O {[%emt 0:02:59]} 6. b3 {[%emt 0:00:04]} d4 {[%emt 0:00:41]} 7. Bb2 {[%emt 0:26:17]} c5 {[%emt 0:00:32]} 8. b4 {[%emt 0:02:04]} Qb6 {[%emt 0:11:34]} 9. Qb3 {[%emt 0:00:59]} Rd8 {[%emt 0:06:40]} 10. bxc5 {[%emt 0:01:25]} Bxc5 {[%emt 0:07:47]} 11. d3 {[%emt 0:00:56]} Nc6 {[%emt 0:00:30]} 12. Nbd2 {[%emt 0:00:55]} h6 {[%emt 0:08:10]} 13. Ba3 {[%emt 0:03:14]} Nb4 {[%emt 0:14:48]} 14. Bxb4 {[%emt 0:04:15]} Bxb4 {[%emt 0:01:20]} 15. Rab1 {[%emt 0:00:52]} Bc3 {[%emt 0:00:23]} 16. Qa3 {[%emt 0:06:32]} Qc7 {[%emt 0:03:48]} 17. Nb3 {[%emt 0:03:02]} e5 {[%emt 0:08:03]} 18. Qc5 {[%emt 0:00:34]} Qxc5 {[%emt 0:00:50]} 19. Nxc5 {[%emt 0:00:06]} e4 {[%emt 0:00:22]} 20. dxe4 {[%emt 0:07:36]} b6 {[%emt 0:05:22]} 21. e5 {[%emt 0:00:32]} Bf5 {[%emt 0:02:05]} 22. Rb5 {[%emt 0:03:25]} bxc5 {[%emt 0:08:28]} 23. exf6 {[%emt 0:03:43]} d3 {[%emt 0:04:08]} 24. exd3 {[%emt 0:02:53]} Bxd3 {[%emt 0:01:10]} 25. Rc1 {[%emt 0:01:33]} Bxf6 {[%emt 0:07:29]} 26. Ne1 {[%emt 0:01:15]} Rac8 {[%emt 0:00:13]} 27. Nxd3 {[%emt 0:00:15]} Rxd3 {[%emt 0:00:06]} 28. Rb7 {[%emt 0:01:05]} Rd2 {[%emt 0:03:04]} 29. Rxa7 {[%emt 0:02:24]} Bd4 {[%emt 0:00:40]} 30. Rf1 {[%emt 0:00:20]} Rb8 {[%emt 0:01:47]} 31. Bd5 {[%emt 0:01:25]} Rbb2 {[%emt 0:00:28]} 32. Rxf7 {[%emt 0:00:12]} Rxa2 {[%emt 0:00:42] normal} 1-0

[Event "GER-ch Youth ODJM 2019"]
[Site "Willingen"]
[Date "2019.06.15"]
[Round "9.8"]
[White "Schimnatkowski, Lukas"]
[Black "Biermann, Lenhard"]
[Result "1-0"]
[ECO "A14"]
[WhiteElo "2139"]
[BlackElo "2069"]
[Annotator "ChessBase"]
[PlyCount "119"]
[EventDate "2019.06.07"]
[EventType "swiss"]
[EventRounds "9"]
[EventCountry "GER"]
[SourceTitle "playchess.com"]
[Source "ChessBase"]
[SourceQuality "1"]
[TimeControl "40/5400+30:1800+30"]

1. c4 {[%emt 0:00:00]} Nf6 {[%emt 0:00:00]} 2. g3 {[%emt 0:00:00]} e6 {[%emt 0:00:00]} 3. Bg2 {[%emt 0:00:00]} d5 {[%emt 0:00:00]} 4. Nf3 {[%emt 0:00:01]} Be7 {[%emt 0:00:14]} 5. O-O {[%emt 0:00:05]} O-O {[%emt 0:00:10]} 6. b3 {[%emt 0:00:06]} b6 {[%emt 0:00:16]} 7. Bb2 {[%emt 0:00:16]} Bb7 {[%emt 0:00:11]} 8. e3 {[%emt 0:00:26]} c5 {[%emt 0:06:05]} 9. Nc3 {[%emt 0:00:35]} Nc6 {[%emt 0:01:02]} 10. cxd5 {[%emt 0:00:32]} exd5 {[%emt 0:02:31]} 11. d4 {[%emt 0:00:05]} Re8 {[%emt 0:09:52]} 12. Rc1 {[%emt 0:07:45]} Rc8 {[%emt 0:13:51]} 13. Qd3 {[%emt 0:06:10]} Nb4 {[%emt 0:08:35]} 14. Qb1 {[%emt 0:02:09]} c4 {[%emt 0:04:17]} 15. bxc4 {[%emt 0:01:52]} dxc4 {[%emt 0:00:30]} 16. Ne5 {[%emt 0:12:26]} Bxg2 {[%emt 0:01:13]} 17. Kxg2 {[%emt 0:00:05]} b5 {[%emt 0:04:56]} 18. a4 {[%emt 0:05:23]} a6 {[%emt 0:06:18]} 19. Ba3 {[%emt 0:01:07]} Qa5 {[%emt 0:02:22]} 20. Qf5 {[%emt 0:12:48]} bxa4 {[%emt 0:10:24]} 21. Ra1 {[%emt 0:14:18]} Nbd5 {[%emt 0:12:16]} 22. Bxe7 {[%emt 0:12:40]} Nxe7 {[%emt 0:00:04]} 23. Qc2 {[%emt 0:00:12]} a3 {[%emt 0:00:18]} 24. Qc1 {[%emt 0:06:19]} Ned5 {[%emt 0:05:23]} 25. Rxa3 {[%emt 0:00:25]} Qb6 {[%emt 0:00:47]} 26. Kg1 {[%emt 0:03:49]} Nb4 {[%emt 0:02:46]} 27. Qa1 {[%emt 0:02:00]} Qd6 {[%emt 0:07:11]} 28. Rc1 {[%emt 0:00:53]} Rc7 {[%emt 0:01:26]} 29. Ra5 {[%emt 0:03:59]} Rd8 {[%emt 0:00:27]} 30. Qa3 {[%emt 0:02:22]} Nd3 {[%emt 0:00:28]} 31. Nxd3 {[%emt 0:00:12]} cxd3 {[%emt 0:00:03]} 32. Rd1 {[%emt 0:00:11]} Qxa3 {[%emt 0:01:17]} 33. Rxa3 {[%emt 0:00:04]} Rdc8 {[%emt 0:00:12]} 34. Rxd3 {[%emt 0:00:19]} Rc6 {[%emt 0:00:52]} 35. Kg2 {[%emt 0:00:42]} Kf8 {[%emt 0:00:09]} 36. e4 {[%emt 0:01:16]} Rd8 {[%emt 0:00:14]} 37. d5 {[%emt 0:00:33]} Rb6 {[%emt 0:00:37]} 38. Rd4 {[%emt 0:01:01]} Nd7 {[%emt 0:00:24]} 39. Rda4 {[%emt 0:01:35]} Nc5 {[%emt 0:00:23]} 40. Ra5 {[%emt 0:00:08]} Rc8 {[%emt 0:00:16]} 41. Na4 {[%emt 0:31:08]} Nxa4 {[%emt 0:30:58]} 42. R5xa4 {[%emt 0:00:19]} Rc2 {[%emt 0:00:38]} 43. Rxa6 {[%emt 0:01:17]} Rxa6 {[%emt 0:00:00]} 44. Rxa6 {[%emt 0:00:00]} Rc4 {[%emt 0:00:00]} 45. Kf3 {[%emt 0:00:00]} Rd4 {[%emt 0:00:00]} 46. Ke3 {[%emt 0:00:00]} Rd1 {[%emt 0:00:00]} 47. Ra2 {[%emt 0:00:00]} h5 {[%emt 0:00:00]} 48. h4 {[%emt 0:00:00]} Ke7 {[%emt 0:00:00]} 49. Kf4 {[%emt 0:00:00]} g6 {[%emt 0:00:00]} 50. Ra7+ {[%emt 0:00:00]} Ke8 {[%emt 0:00:00]} 51. Ke5 {[%emt 0:00:00]} Rb1 {[%emt 0:00:00]} 52. Ra3 {[%emt 0:00:00]} Rb7 {[%emt 0:00:00]} 53. Rc3 {[%emt 0:00:00]} Rb6 {[%emt 0:00:00]} 54. f4 {[%emt 0:00:00]} Ra6 {[%emt 0:00:00]} 55. f5 {[%emt 0:00:00]} gxf5 {[%emt 0:00:00]} 56. Kxf5 {[%emt 0:00:00]} Ke7 {[%emt 0:00:00]} 57. Kg5 {[%emt 0:00:00]} Rg6+ {[%emt 0:00:00]} 58. Kxh5 {[%emt 0:00:00]} Kd7 {[%emt 0:00:00]} 59. g4 {[%emt 0:00:00]} Ke7 {[%emt 0:00:00]} 60. e5 {[%emt 0:00:00] normal} 1-0

[Event "GER-ch Youth ODJM 2019"]
[Site "Willingen"]
[Date "2019.06.15"]
[Round "9.9"]
[White "Ronge, Tim Hendrick"]
[Black "Mueller, Magnus"]
[Result "1-0"]
[ECO "D35"]
[WhiteElo "2143"]
[BlackElo "1837"]
[Annotator "ChessBase"]
[PlyCount "49"]
[EventDate "2019.06.07"]
[EventType "swiss"]
[EventRounds "9"]
[EventCountry "GER"]
[SourceTitle "playchess.com"]
[Source "ChessBase"]
[SourceQuality "1"]
[TimeControl "40/5400+30:1800+30"]

1. d4 {[%emt 0:00:00]} d5 {[%emt 0:02:13]} 2. c4 {[%emt 0:00:00]} e6 {[%emt 0:00:03]} 3. Nc3 {[%emt 0:00:00]} Nf6 {[%emt 0:00:16]} 4. cxd5 {[%emt 0:00:00]} Nxd5 {[%emt 0:00:04]} 5. e4 {[%emt 0:00:07]} Nxc3 {[%emt 0:00:03]} 6. bxc3 {[%emt 0:00:05]} c5 {[%emt 0:00:03]} 7. Rb1 {[%emt 0:00:05]} Be7 {[%emt 0:07:00]} 8. Nf3 {[%emt 0:00:08]} O-O {[%emt 0:10:04]} 9. Bd3 {[%emt 0:00:05]} Qc7 {[%emt 0:00:53]} 10. O-O {[%emt 0:00:18]} b6 {[%emt 0:03:06]} 11. Qe2 {[%emt 0:00:12]} Bb7 {[%emt 0:03:38]} 12. Re1 {[%emt 0:03:35]} Nd7 {[%emt 0:11:12]} 13. d5 {[%emt 0:01:57]} exd5 {[%emt 0:02:45]} 14. exd5 {[%emt 0:01:46]} Rae8 {[%emt 0:04:17]} 15. c4 {[%emt 0:00:43]} Nf6 {[%emt 0:03:44]} 16. Bb2 {[%emt 0:02:25]} g6 {[%emt 0:04:51]} 17. Qd2 {[%emt 0:06:32]} Nh5 {[%emt 0:05:29]} 18. Ne5 {[%emt 0:27:02]} Bf6 {[%emt 0:10:24]} 19. f4 {[%emt 0:05:06]} Bg7 {[%emt 0:04:57]} 20. g3 {[%emt 0:03:39]} Qd6 {[%emt 0:04:32]} 21. Bc3 {[%emt 0:12:54]} Re7 {[%emt 0:04:04]} 22. a4 {[%emt 0:02:58]} Rfe8 {[%emt 0:00:44]} 23. a5 {[%emt 0:01:01]} Nf6 {[%emt 0:00:41]} 24. Bc2 {[%emt 0:03:18]} Nd7 {[%emt 0:02:42]} 25. Ba4 {[%emt 0:01:00] normal} 1-0